{"text_format":"3","workbook":"xlsx","n_sheets":2,"sheets":["Podsumowanie budżetu","Szczegóły budżetu"],"not_rendered":{"images":1,"defined_names":1},"read":"whole","date_system":"1900"}

{"sheet":"Podsumowanie budżetu","index":0,"n_rows":28,"n_cols":7,"rows_kept":28}
[{"$nulls":6}," "]
[]
[null,"CAŁKOWITY BUDŻET ŚLUBNY",{"v":20000,"d":"20,000 zł"}]
[]
[null,"WYDATKI","Alokacja \n%","Przydzielony budżet","Szacowane \nKoszty","Rzeczywiste \nKoszty"]
[null,"Wesele",{"v":0.5,"d":"50%"},{"$f":"Całkowity_budżet_ślubny*'Podsumowanie budżetu'!$C6","v":{"v":10000,"d":"10,000 zł"}},{"$f":"Tabela_PrzyjęcieWeselne[[#Totals],[Szacowane koszty]]","v":{"v":0,"d":"0 zł"}},{"$f":"Tabela_PrzyjęcieWeselne[[#Totals],[Koszty rzeczywiste]]","v":{"v":0,"d":"0 zł"}}]
[null,"Ubiór",{"v":0.1,"d":"10%"},{"$f":"Całkowity_budżet_ślubny*'Podsumowanie budżetu'!$C7","v":{"v":2000,"d":"2,000 zł"}},{"$f":"Tabela_Ubiór[[#Totals],[Szacowane koszty]]","v":{"v":0,"d":"0 zł"}},{"$f":"Tabela_Ubiór[[#Totals],[Koszty rzeczywiste]]","v":{"v":0,"d":"0 zł"}}]
[null,"Kwiaty i dekoracje",{"v":0.1,"d":"10%"},{"$f":"Całkowity_budżet_ślubny*'Podsumowanie budżetu'!$C8","v":{"v":2000,"d":"2,000 zł"}},{"$f":"Tabela_KwiatyiDekoracje[[#Totals],[Szacowane koszty]]","v":{"v":0,"d":"0 zł"}},{"$f":"Tabela_KwiatyiDekoracje[[#Totals],[Koszty rzeczywiste]]","v":{"v":0,"d":"0 zł"}}]
[null,"Muzyka",{"v":0.1,"d":"10%"},{"$f":"Całkowity_budżet_ślubny*'Podsumowanie budżetu'!$C9","v":{"v":2000,"d":"2,000 zł"}},{"$f":"Tabela_OprawaMuzyczna[[#Totals],[Szacowane koszty]]","v":{"v":0,"d":"0 zł"}},{"$f":"Tabela_OprawaMuzyczna[[#Totals],[Koszty rzeczywiste]]","v":{"v":0,"d":"0 zł"}}]
[null,"Fotografie i klipy wideo",{"v":0.1,"d":"10%"},{"$f":"Całkowity_budżet_ślubny*'Podsumowanie budżetu'!$C10","v":{"v":2000,"d":"2,000 zł"}},{"$f":"Tabela_FotografiKamerzysta[[#Totals],[Szacowane koszty]]","v":{"v":0,"d":"0 zł"}},{"$f":"Tabela_FotografiKamerzysta[[#Totals],[Koszty rzeczywiste]]","v":{"v":0,"d":"0 zł"}}]
[null,"Usługi specjalne i prezenty",{"v":0.03,"d":"3%"},{"$f":"Całkowity_budżet_ślubny*'Podsumowanie budżetu'!$C11","v":{"v":600,"d":"600 zł"}},{"$f":"Tabela_UpominkiiPrezenty[[#Totals],[Szacowane koszty]]","v":{"v":0,"d":"0 zł"}},{"$f":"Tabela_UpominkiiPrezenty[[#Totals],[Koszty rzeczywiste]]","v":{"v":0,"d":"0 zł"}}]
[null,"Ceremonia",{"v":0.02,"d":"2%"},{"$f":"Całkowity_budżet_ślubny*'Podsumowanie budżetu'!$C12","v":{"v":400,"d":"400 zł"}},{"$f":"Tabela_Ceremonia[[#Totals],[Szacowane koszty]]","v":{"v":0,"d":"0 zł"}},{"$f":"Tabela_Ceremonia[[#Totals],[Koszty rzeczywiste]]","v":{"v":0,"d":"0 zł"}}]
[null,"Papeteria",{"v":0.02,"d":"2%"},{"$f":"Całkowity_budżet_ślubny*'Podsumowanie budżetu'!$C13","v":{"v":400,"d":"400 zł"}},{"$f":"Tabela_Papeteria[[#Totals],[Szacowane koszty]]","v":{"v":0,"d":"0 zł"}},{"$f":"Tabela_Papeteria[[#Totals],[Koszty rzeczywiste]]","v":{"v":0,"d":"0 zł"}}]
[null,"Obrączki ślubne",{"v":0.02,"d":"2%"},{"$f":"Całkowity_budżet_ślubny*'Podsumowanie budżetu'!$C14","v":{"v":400,"d":"400 zł"}},{"$f":"Tabela_ObrączkiŚlubne[[#Totals],[Szacowane koszty]]","v":{"v":0,"d":"0 zł"}},{"$f":"Tabela_ObrączkiŚlubne[[#Totals],[Koszty rzeczywiste]]","v":{"v":0,"d":"0 zł"}}]
[null,"Transport",{"v":0.01,"d":"1%"},{"$f":"Całkowity_budżet_ślubny*'Podsumowanie budżetu'!$C15","v":{"v":200,"d":"200 zł"}},{"$f":"Tabela_Transport[[#Totals],[Szacowane koszty]]","v":{"v":0,"d":"0 zł"}},{"$f":"Tabela_Transport[[#Totals],[Koszty rzeczywiste]]","v":{"v":0,"d":"0 zł"}}]
[null,"Suma",{"$f":"SUM(C6:C15)","v":{"v":1,"d":"100%"}},{"$f":"SUM(D6:D15)","v":{"v":20000,"d":"20,000 zł"}},{"v":0,"d":"0 zł"},{"v":0,"d":"0 zł"}]
[]
[null,"WPŁATY"]
[null,"Źródło funduszu","Wpłata"]
[null,"Oszczędności",{"v":10000,"d":"10,000 zł"}]
[null,"Mama i tata partnera 1",{"v":4000,"d":"4,000 zł"}]
[null,"Dziadkowie partnera 1",{"v":2000,"d":"2,000 zł"}]
[null,"Mama i tata partnera 2",{"v":4000,"d":"4,000 zł"}]
[null,"Dziadkowie partnera 2",{"v":4000,"d":"4,000 zł"}]
[null,"Inne wpłaty",{"v":2000,"d":"2,000 zł"}]
[null,"Suma",{"$f":"SUBTOTAL(109,Tabela_Wpłaty[Wpłata])","v":{"v":26000,"d":"26,000 zł"}}]
[]
[null,{"$f":"IF(Tabela_Wpłaty[[#Totals],[Wpłata]]<Całkowity_budżet_ślubny,\"Różnica do nadrobienia\",\"Dostępne dodatkowe fundusze\")","v":"Dostępne dodatkowe fundusze"},{"$f":"IF(Tabela_Wpłaty[[#Totals],[Wpłata]]<Całkowity_budżet_ślubny,Całkowity_budżet_ślubny-Tabela_Wpłaty[[#Totals],[Wpłata]],Tabela_Wpłaty[[#Totals],[Wpłata]]-Całkowity_budżet_ślubny)","v":{"v":6000,"d":"6,000 zł"}}]

{"sheet":"Szczegóły budżetu","index":1,"n_rows":80,"n_cols":4,"rows_kept":80}
[]
[null,"WESELE","Szacowane koszty","Koszty rzeczywiste"]
[null,"Miejsce i czynsze"]
[null,"Żywność i obsługa"]
[null,"Napoje"]
[null,"Ciasto"]
[null,"Opłaty różne"]
[null,"Suma",{"$f":"SUBTOTAL(109,Tabela_PrzyjęcieWeselne[Szacowane koszty])","v":{"v":0,"d":"0.00 zł"}},{"$f":"SUBTOTAL(109,Tabela_PrzyjęcieWeselne[Koszty rzeczywiste])","v":{"v":0,"d":"0.00 zł"}}]
[]
[null,"UBIÓR","Szacowane koszty","Koszty rzeczywiste"]
[null,"Smoking, garnitur i/lub suknia"]
[null,"Zmiany"]
[null,"Ozdoba głowy i welon"]
[null,"Akcesoria"]
[null,"Włosy i makijaż"]
[null,"Opłaty różne"]
[null,"Suma",{"$f":"SUBTOTAL(109,Tabela_Ubiór[Szacowane koszty])","v":{"v":0,"d":"0.00 zł"}},{"$f":"SUBTOTAL(109,Tabela_Ubiór[Koszty rzeczywiste])","v":{"v":0,"d":"0.00 zł"}}]
[]
[null,"KWIATY I DEKORACJE","Szacowane koszty","Koszty rzeczywiste"]
[null,"Ustalenia dotyczące kwiatów dla ceremonii"]
[null,"Kwiaty i koszyk dziewczynek rozsypujących kwiaty"]
[null,"Poduszka pod obrączkę"]
[null,"Bukiety"]
[null,"Butonierki"]
[null,"Bukieciki do sukienek"]
[null,"Dekoracje na przyjęcie"]
[null,"Oświetlenie"]
[null,"Opłaty różne"]
[null,"Suma",{"$f":"SUBTOTAL(109,Tabela_KwiatyiDekoracje[Szacowane koszty])","v":{"v":0,"d":"0.00 zł"}},{"$f":"SUBTOTAL(109,Tabela_KwiatyiDekoracje[Koszty rzeczywiste])","v":{"v":0,"d":"0.00 zł"}}]
[]
[null,"MUZYKA","Szacowane koszty","Koszty rzeczywiste"]
[null,"Muzycy na ceremonię"]
[null,"Muzycy na czas koktajlu"]
[null,"Zespół na przyjęcie, DJ lub rozrywka"]
[null,"Wynajem systemu dźwiękowego lub parkietu"]
[null,"Opłaty różne"]
[null,"Suma",{"$f":"SUBTOTAL(109,Tabela_OprawaMuzyczna[Szacowane koszty])","v":{"v":0,"d":"0.00 zł"}},{"$f":"SUBTOTAL(109,Tabela_OprawaMuzyczna[Koszty rzeczywiste])","v":{"v":0,"d":"0.00 zł"}}]
[]
[null,"FOTOGRAFIE I KLIPY WIDEO","Szacowane koszty","Koszty rzeczywiste"]
[null,"Fotografie"]
[null,"Rejestracja wideo"]
[null,"Kolejne odbitki i albumy"]
[null,"Opłaty różne"]
[null,"Suma",{"$f":"SUBTOTAL(109,Tabela_FotografiKamerzysta[Szacowane koszty])","v":{"v":0,"d":"0.00 zł"}},{"$f":"SUBTOTAL(109,Tabela_FotografiKamerzysta[Koszty rzeczywiste])","v":{"v":0,"d":"0.00 zł"}}]
[]
[null,"USŁUGI SPECJALNE I PREZENTY","Szacowane koszty","Koszty rzeczywiste"]
[null,"Prezenty na powitanie"]
[null,"Prezenty podczas przyjęcia"]
[null,"Opłaty różne"]
[null,"Suma",{"$f":"SUBTOTAL(109,Tabela_UpominkiiPrezenty[Szacowane koszty])","v":{"v":0,"d":"0.00 zł"}},{"$f":"SUBTOTAL(109,Tabela_UpominkiiPrezenty[Koszty rzeczywiste])","v":{"v":0,"d":"0.00 zł"}}]
[]
[null,"CEREMONIA","Szacowane koszty","Koszty rzeczywiste"]
[null,"Opłata za lokalizację"]
[null,"Opłata celebransa lub darowizna na kościół"]
[null,"Opłaty różne"]
[null,"Suma",{"$f":"SUBTOTAL(109,Tabela_Ceremonia[Szacowane koszty])","v":{"v":0,"d":"0.00 zł"}},{"$f":"SUBTOTAL(109,Tabela_Ceremonia[Koszty rzeczywiste])","v":{"v":0,"d":"0.00 zł"}}]
[]
[null,"PAPETERIA","Szacowane koszty","Koszty rzeczywiste"]
[null,"Zapisz datę — karty"]
[null,"Zaproszenia i RSVP"]
[null,"Programy"]
[null,"Karty siedzeń i miejsc"]
[null,"Karty menu"]
[null,"Podziękowania — notatki"]
[null,"Opłaty pocztowe"]
[null,"Opłaty różne"]
[null,"Suma",{"$f":"SUBTOTAL(109,Tabela_Papeteria[Szacowane koszty])","v":{"v":0,"d":"0.00 zł"}},{"$f":"SUBTOTAL(109,Tabela_Papeteria[Koszty rzeczywiste])","v":{"v":0,"d":"0.00 zł"}}]
[]
[null,"OBRĄCZKI ŚLUBNE","Szacowane koszty","Koszty rzeczywiste"]
[null,"Obrączki ślubne"]
[null,"Akcesoria obrączek"]
[null,"Suma",{"$f":"SUBTOTAL(109,Tabela_ObrączkiŚlubne[Szacowane koszty])","v":{"v":0,"d":"0.00 zł"}},{"$f":"SUBTOTAL(109,Tabela_ObrączkiŚlubne[Koszty rzeczywiste])","v":{"v":0,"d":"0.00 zł"}}]
[]
[null,"TRANSPORT","Szacowane koszty","Koszty rzeczywiste"]
[null,"Wynajem głównego samochodu"]
[null,"Wynajem samochodu dla gości"]
[null,"Transport dla gości zamiejscowych"]
[null,"Parkingowy"]
[null,"Opłaty różne"]
[null,"Suma",{"$f":"SUBTOTAL(109,Tabela_Transport[Szacowane koszty])","v":{"v":0,"d":"0.00 zł"}},{"$f":"SUBTOTAL(109,Tabela_Transport[Koszty rzeczywiste])","v":{"v":0,"d":"0.00 zł"}}]